fUSD/lending_fUSD_20240821
["ID","MTS","AMOUNT","RATE_DAILY","PERIOD"]
[335491567,1724271060970,-592.34,0.00015068,2]
[335491568,1724271060979,-516.26,0.00015068,2]
[335491569,1724271060989,-500.0,0.00015068,2]
[335491570,1724271060999,-500.0,0.00015068,2]
[335491571,1724271061007,-1609.75,0.00015068,2]
[335491572,1724271061017,-1751.79,0.00015068,2]
[335491573,1724271061026,-500.0,0.00015068,2]
[335491574,1724271061035,-2912.27,0.00015068,2]
[335491575,1724271061045,-4271.33,0.00015068,2]
[335491576,1724271061054,-892.56,0.00015068,2]
[335491577,1724271061064,-1349.34,0.00015068,2]
[335491578,1724271061073,-500.0,0.00015068,2]
[335491579,1724271061082,-1872.48,0.00015068,2]
[335491580,1724271061092,-500.0,0.00015068,2]
[335491581,1724271061101,-1874.41,0.00015068,2]
[335491582,1724271061111,-843.59,0.00015068,2]
[335491583,1724271061120,-572.46,0.00015068,2]
[335491584,1724271061130,-367.73063408,0.00015068,2]
[335491585,1724271061139,-500.0,0.00015068,2]
[335491586,1724271061148,-1812.21,0.00015068,2]
[335491587,1724271061158,-1297.86,0.00015068,2]
[335491588,1724271061168,-8174.27,0.00015068,2]
[335491589,1724271061177,-574.93,0.00015068,2]
[335491590,1724271061187,-778.72,0.00015068,2]
[335491591,1724271061197,-2107.46,0.00015068,2]
[335491592,1724271061206,-768.88,0.00015068,2]
[335491593,1724271061216,-2739.14,0.00015068,2]
[335491594,1724271061226,-23349.98,0.00015068,2]
[335491595,1724271061235,-1463.51,0.00015068,2]
[335491596,1724271061245,-500.0,0.00015068,2]
[335491597,1724271061255,-1339.48,0.00015068,2]
[335491598,1724271061264,-3622.41,0.00015068,2]
[335491599,1724271061274,-1649.78,0.00015068,2]
[335491600,1724271061287,-1449.44,0.00015068,2]
[335491601,1724271061296,-500.0,0.00015068,2]
[335491602,1724271061305,-11751.7,0.00015068,2]
[335491603,1724271061315,-1388.58,0.00015068,2]
[335491604,1724271061325,-905.44,0.00015068,2]
[335491605,1724271061334,-864.58,0.00015068,2]
[335491606,1724271061351,-3327.77,0.00015068,2]
[335491607,1724271061362,-1453.56,0.00015068,2]
[335491608,1724271061373,-500.0,0.00015068,2]
[335491609,1724271061383,-2863.74,0.00015068,2]
[335491610,1724271061392,-501.06,0.00015068,2]
[335491611,1724271061402,-1806.38,0.00015068,2]
[335491612,1724271061411,-500.0,0.00015068,2]
[335491613,1724271061420,-4240.59,0.00015068,2]
[335491614,1724271061430,-888.38,0.00015068,2]
[335491615,1724271061439,-500.0,0.00015068,2]
[335491616,1724271061448,-1356.0,0.00015068,2]
[335491617,1724271061458,-956.25,0.00015068,2]
[335491618,1724271061468,-2136.97,0.00015068,2]
[335491619,1724271061595,-598.4,0.00015068,2]
[335491620,1724271061605,-16675.59,0.00015068,2]
[335491621,1724271061615,-2045.67,0.00015068,2]
[335491622,1724271061624,-1258.6,0.00015068,2]
[335491623,1724271061634,-500.0,0.00015068,2]
[335491624,1724271061643,-500.0,0.00015068,2]
[335491625,1724271061652,-500.0,0.00015068,2]
[335491626,1724271061662,-201.0,0.000151,2]
[335491627,1724271061671,-500.0,0.000151,2]
[335491628,1724271061681,-200.0,0.0001515,2]
[335491629,1724271061691,-265.0,0.0001516,2]
[335491630,1724271061701,-200.0,0.0001516,2]
[335491631,1724271061710,-201.0,0.0001524,2]
[335491632,1724271061719,-1000.0,0.00015268,2]
[335491633,1724271061729,-794.0,0.00015282,2]
[335491634,1724271061738,-1000.0,0.00015317,2]
[335491635,1724271061748,-4396.83,0.00015341,2]
[335491636,1724271061758,-500.0,0.00015342,2]
[335491637,1724271061768,-500.0,0.00015342,2]
[335491638,1724271061778,-500.0,0.00015342,2]
[335491639,1724271061788,-500.0,0.00015342,2]
[335491640,1724271061797,-500.0,0.00015342,2]
[335491641,1724271061806,-500.0,0.00015342,2]
[335491642,1724271061816,-500.0,0.00015342,2]
[335491643,1724271061826,-500.0,0.00015342,2]
[335491644,1724271061835,-849.75,0.00015342,2]
[335491645,1724271061848,-500.0,0.00015342,2]
[335491646,1724271061857,-553.65,0.00015342,2]
[335491647,1724271061867,-500.0,0.00015342,2]
[335491648,1724271061877,-500.0,0.00015342,2]
[335491649,1724271061886,-500.0,0.00015342,2]
[335491650,1724271061896,-2476.81,0.00015342,2]
[335491651,1724271061905,-500.0,0.00015342,2]
[335491652,1724271061914,-500.0,0.00015342,2]
[335491653,1724271061924,-819.63,0.00015342,2]
[335491654,1724271061933,-500.0,0.00015342,2]
[335491655,1724271061943,-349.99835211,0.00015342,2]
[335491656,1724271061952,-515.63819082,0.00015342,2]
[335491657,1724271061962,-500.0,0.00015342,2]
[335491658,1724271061971,-500.0,0.00015342,2]
[335491659,1724271061981,-953.0,0.00015342,2]
[335491660,1724271061991,-500.0,0.00015342,2]
[335491661,1724271062000,-500.0,0.00015342,2]
[335491662,1724271062009,-553.4,0.00015342,2]
[335491663,1724271062018,-2372.5,0.00015342,2]
[335491664,1724271062027,-1887.65,0.00015342,2]
[335491665,1724271062037,-500.0,0.00015342,2]
[335491666,1724271062047,-500.0,0.00015342,2]
[335491667,1724271062056,-838.39,0.00015342,2]
[335491668,1724271062066,-500.0,0.00015342,2]
[335491669,1724271062075,-942.96,0.00015342,2]
[335491670,1724271062085,-500.0,0.00015342,2]
[335491671,1724271062100,-2031.17,0.00015342,2]
[335491672,1724271062109,-500.0,0.00015342,2]
[335491673,1724271062118,-1086.02,0.00015342,2]
[335491674,1724271062128,-500.0,0.00015342,2]
[335491675,1724271062138,-500.0,0.00015342,2]
[335491676,1724271062148,-500.0,0.00015342,2]
[335491677,1724271062158,-500.0,0.00015342,2]
[335491678,1724271062168,-500.0,0.00015342,2]
[335491679,1724271062178,-500.0,0.00015342,2]
[335491680,1724271062187,-1406.4,0.00015342,2]
[335491681,1724271062197,-2109.32,0.00015342,2]
[335491682,1724271062206,-506.39,0.00015342,2]
[335491683,1724271062215,-500.0,0.00015342,2]
[335491684,1724271062224,-500.0,0.00015342,2]
[335491685,1724271062233,-500.0,0.00015342,2]
[335491686,1724271062243,-500.0,0.00015342,2]
[335491687,1724271062252,-633.06,0.00015342,2]
[335491688,1724271062262,-2082.07,0.00015342,2]
[335491689,1724271062271,-500.0,0.00015342,2]
[335491690,1724271062283,-1272.91,0.00015342,2]
[335491691,1724271062298,-877.63,0.00015342,2]
[335491692,1724271062316,-500.0,0.00015342,2]
[335491693,1724271062327,-2827.83,0.00015342,2]
[335491694,1724271062336,-535.54234849,0.00015342,2]
[335491695,1724271062348,-679.05,0.00015342,2]
[335491696,1724271062358,-2900.23,0.00015342,2]
[335491697,1724271062367,-3837.38,0.00015342,2]
[335491698,1724271062377,-1312.2,0.00015342,2]
[335491699,1724271062386,-5651.96,0.00015342,2]
[335491700,1724271062396,-2385.71,0.00015342,2]
[335491701,1724271062405,-2073.03,0.00015342,2]
[335491702,1724271062415,-727.0,0.00015342,2]
[335491703,1724271062424,-4428.25,0.00015342,2]
[335491704,1724271062433,-4040.23,0.00015342,2]
[335491705,1724271062443,-500.0,0.00015342,2]
[335491706,1724271062453,-500.0,0.00015342,2]
[335491707,1724271062462,-1758.36,0.00015342,2]
[335491708,1724271062471,-8908.85,0.00015342,2]
[335491709,1724271062480,-2776.63,0.00015342,2]
[335491710,1724271062489,-1849.24,0.00015342,2]
[335491711,1724271062505,-1976.14,0.00015342,2]
[335491712,1724271062519,-4975.15,0.00015342,2]
[335491713,1724271062529,-2893.92,0.00015342,2]
[335491714,1724271062538,-3907.53,0.00015342,2]
[335491715,1724271062548,-652.92,0.00015342,2]
[335491716,1724271062558,-8204.23,0.00015342,2]
[335491717,1724271062568,-715.41,0.00015342,2]
[335491718,1724271062578,-804.61,0.00015342,2]
[335491719,1724271062590,-3869.94,0.00015342,2]
[335491720,1724271062600,-500.0,0.00015342,2]
[335491721,1724271062610,-500.0,0.00015342,2]
[335491722,1724271062619,-560.54,0.00015342,2]
[335491723,1724271062629,-13097.07,0.00015342,2]
[335491724,1724271062638,-569.23,0.00015342,2]
[335491725,1724271062648,-500.0,0.00015342,2]
[335491726,1724271062657,-500.0,0.00015342,2]
[335491727,1724271062668,-5246.21,0.00015342,2]
[335491728,1724271062678,-508.22,0.00015342,2]
[335491729,1724271062687,-579.28,0.00015342,2]
[335491730,1724271062698,-540.92,0.00015342,2]
[335491731,1724271062707,-770.64,0.00015342,2]
[335491732,1724271062717,-1221.8,0.00015342,2]
[335491733,1724271062726,-592.34,0.00015342,2]
[335491734,1724271062736,-516.26,0.00015342,2]
[335491735,1724271062745,-500.0,0.00015342,2]
[335491736,1724271062755,-500.0,0.00015342,2]
[335491737,1724271062764,-1609.75,0.00015342,2]
[335491738,1724271062773,-1751.79,0.00015342,2]
[335491739,1724271062783,-500.0,0.00015342,2]
[335491740,1724271062793,-2912.27,0.00015342,2]
[335491741,1724271062802,-4271.33,0.00015342,2]
[335491742,1724271062811,-892.56,0.00015342,2]
[335491743,1724271062820,-500.0,0.00015342,2]
[335491744,1724271062829,-1349.34,0.00015342,2]
[335491745,1724271062839,-1872.48,0.00015342,2]
[335491746,1724271062849,-500.0,0.00015342,2]
[335491747,1724271062858,-1874.41,0.00015342,2]
[335491748,1724271062867,-843.59,0.00015342,2]
[335491749,1724271062877,-572.46,0.00015342,2]
[335491750,1724271062887,-500.0,0.00015342,2]
[335491751,1724271062897,-1812.21,0.00015342,2]
[335491752,1724271062906,-1297.86,0.00015342,2]
[335491753,1724271062915,-8174.27,0.00015342,2]
[335491754,1724271062924,-574.93,0.00015342,2]
[335491755,1724271062934,-778.72,0.00015342,2]
[335491756,1724271062943,-2107.46,0.00015342,2]
[335491757,1724271062954,-768.88,0.00015342,2]
[335491758,1724271062964,-2739.14,0.00015342,2]
[335491759,1724271062973,-23349.98,0.00015342,2]
[335491760,1724271062982,-1463.51,0.00015342,2]
[335491761,1724271062992,-500.0,0.00015342,2]
[335491762,1724271063001,-1339.48,0.00015342,2]
[335491763,1724271063011,-3622.41,0.00015342,2]
[335491764,1724271063021,-1649.78,0.00015342,2]
[335491765,1724271063030,-1449.44,0.00015342,2]
[335491766,1724271063040,-434.43922118,0.00015342,2]
[335491767,1724271063049,-11751.7,0.00015342,2]
[335491768,1724271063059,-1388.58,0.00015342,2]
[335491769,1724271063069,-905.44,0.00015342,2]
[335491770,1724271063079,-864.58,0.00015342,2]
[335491771,1724271063089,-3327.77,0.00015342,2]
[335491772,1724271063099,-1453.56,0.00015342,2]
[335491773,1724271063109,-500.0,0.00015342,2]
[335491774,1724271063119,-2863.74,0.00015342,2]
[335491775,1724271063128,-501.06,0.00015342,2]
[335491776,1724271063138,-1806.38,0.00015342,2]
[335491777,1724271063148,-500.0,0.00015342,2]
[335491778,1724271063160,-4240.59,0.00015342,2]
[335491779,1724271063170,-888.38,0.00015342,2]
[335491780,1724271063180,-500.0,0.00015342,2]
[335491781,1724271063189,-1356.0,0.00015342,2]
[335491782,1724271063199,-956.25,0.00015342,2]
[335491783,1724271063208,-2136.97,0.00015342,2]
[335491784,1724271063217,-598.4,0.00015342,2]
[335491785,1724271063227,-16675.59,0.00015342,2]
[335491786,1724271063236,-2045.67,0.00015342,2]
[335491787,1724271063246,-1258.6,0.00015342,2]
[335491788,1724271063255,-500.0,0.00015342,2]
[335491789,1724271063267,-500.0,0.00015342,2]
[335491790,1724271063277,-500.0,0.00015342,2]
[335491791,1724271063290,-200.0,0.0001537,2]
[335491792,1724271063300,-201.0,0.0001538,2]
[335491793,1724271063310,-200.0,0.0001538,2]
[335491794,1724271063320,-946.59,0.0001542,3]
[335491795,1724271063330,-500.0,0.0001542,3]
[335491796,1724271063345,-500.0,0.0001542,3]
[335491797,1724271063354,-500.0,0.0001542,3]
[335491798,1724271063364,-500.0,0.0001542,3]
[335491799,1724271063375,-150.234412,0.0001547,3]
[335491800,1724271063384,-150.316515,0.0001547,3]
[335491801,1724271063394,-82827.21852366,0.00015494,6]
[335491802,1724271063403,-265.0,0.000155,2]
[335491803,1724271063413,-201.0,0.0001552,2]
[335491804,1724271063423,-200.0,0.0001559,2]
[335491805,1724271063432,-200.0,0.000156,2]
[335491806,1724271063442,-4396.83,0.00015615,2]
[335491807,1724271063452,-500.0,0.00015616,2]
[335491808,1724271063461,-500.0,0.00015616,2]
[335491809,1724271063471,-500.0,0.00015616,2]
[335491810,1724271063481,-500.0,0.00015616,2]
[335491811,1724271063491,-500.0,0.00015616,2]
[335491812,1724271063501,-500.0,0.00015616,2]
[335491813,1724271063510,-500.0,0.00015616,2]
[335491814,1724271063520,-500.0,0.00015616,2]
[335491815,1724271063530,-849.75,0.00015616,2]
[335491816,1724271063540,-500.0,0.00015616,2]
[335491817,1724271063549,-553.65,0.00015616,2]
[335491818,1724271063559,-500.0,0.00015616,2]
[335491819,1724271063569,-500.0,0.00015616,2]
[335491820,1724271063579,-500.0,0.00015616,2]
[335491821,1724271063589,-2476.81,0.00015616,2]
[335491822,1724271063606,-500.0,0.00015616,2]
[335491823,1724271063619,-500.0,0.00015616,2]
[335491824,1724271063628,-819.63,0.00015616,2]
[335491825,1724271063638,-328.73137189,0.00015616,2]
[335491826,1724271063647,-500.0,0.00015616,2]
[335491827,1724271063656,-500.0,0.00015616,2]
[335491828,1724271063666,-953.0,0.00015616,2]
[335491829,1724271063676,-292.48225483,0.00015616,2]
[335491830,1724271063686,-500.0,0.00015616,2]
[335491831,1724271063696,-553.4,0.00015616,2]
[335491832,1724271063705,-2372.5,0.00015616,2]
[335491833,1724271063716,-1887.65,0.00015616,2]
[335491834,1724271063726,-500.0,0.00015616,2]
[335491835,1724271063736,-500.0,0.00015616,2]
[335491836,1724271063746,-838.39,0.00015616,2]
[335491837,1724271063756,-500.0,0.00015616,2]
[335491838,1724271063766,-942.96,0.00015616,2]
[335491839,1724271063775,-500.0,0.00015616,2]
[335491840,1724271063785,-500.0,0.00015616,2]
[335491841,1724271063796,-2031.17,0.00015616,2]
[335491842,1724271063806,-1086.02,0.00015616,2]
[335491843,1724271063816,-500.0,0.00015616,2]
[335491844,1724271063826,-500.0,0.00015616,2]
[335491845,1724271063836,-500.0,0.00015616,2]
[335491846,1724271063845,-500.0,0.00015616,2]
[335491847,1724271063855,-500.0,0.00015616,2]
[335491848,1724271063864,-500.0,0.00015616,2]
[335491849,1724271063874,-1406.4,0.00015616,2]
[335491850,1724271063884,-2109.32,0.00015616,2]
[335491851,1724271063894,-506.39,0.00015616,2]
[335491852,1724271064025,-500.0,0.00015616,2]
[335491853,1724271064035,-500.0,0.00015616,2]
[335491854,1724271064045,-500.0,0.00015616,2]
[335491855,1724271064056,-500.0,0.00015616,2]
[335491856,1724271064066,-633.06,0.00015616,2]
[335491857,1724271064075,-2082.07,0.00015616,2]
[335491858,1724271064085,-500.0,0.00015616,2]
[335491859,1724271064103,-1272.91,0.00015616,2]
[335491860,1724271064113,-877.63,0.00015616,2]
[335491861,1724271064123,-500.0,0.00015616,2]
[335491862,1724271064132,-2827.83,0.00015616,2]
[335491863,1724271064143,-679.05,0.00015616,2]
[335491864,1724271064152,-2900.23,0.00015616,2]
[335491865,1724271064161,-3837.38,0.00015616,2]
[335491866,1724271064171,-1312.2,0.00015616,2]
[335491867,1724271064183,-5651.96,0.00015616,2]
[335491868,1724271064192,-2385.71,0.00015616,2]
[335491869,1724271064202,-2073.03,0.00015616,2]
[335491870,1724271064212,-727.0,0.00015616,2]
[335491871,1724271064221,-4428.25,0.00015616,2]
[335491872,1724271064231,-4040.23,0.00015616,2]
[335491873,1724271064240,-500.0,0.00015616,2]
[335491874,1724271064249,-500.0,0.00015616,2]
[335491875,1724271064259,-1758.36,0.00015616,2]
[335491876,1724271064270,-8908.85,0.00015616,2]
[335491877,1724271064280,-2776.63,0.00015616,2]
[335491878,1724271064293,-1849.24,0.00015616,2]
[335491879,1724271064302,-1976.14,0.00015616,2]
[335491880,1724271064312,-4975.15,0.00015616,2]
[335491881,1724271064323,-2893.92,0.00015616,2]
[335491882,1724271064333,-3907.53,0.00015616,2]
[335491883,1724271064344,-652.92,0.00015616,2]
[335491884,1724271064355,-8204.23,0.00015616,2]
[335491885,1724271064367,-715.41,0.00015616,2]
[335491886,1724271064378,-804.61,0.00015616,2]
[335491887,1724271064388,-3869.94,0.00015616,2]
[335491888,1724271064398,-500.0,0.00015616,2]
[335491889,1724271064408,-500.0,0.00015616,2]
[335491890,1724271064417,-560.54,0.00015616,2]
[335491891,1724271064427,-13097.07,0.00015616,2]
[335491892,1724271064436,-569.23,0.00015616,2]
[335491893,1724271064446,-500.0,0.00015616,2]
[335491894,1724271064457,-500.0,0.00015616,2]
[335491895,1724271064467,-5246.21,0.00015616,2]
[335491896,1724271064476,-508.22,0.00015616,2]
[335491897,1724271064486,-579.28,0.00015616,2]
[335491898,1724271064495,-540.92,0.00015616,2]
[335491899,1724271064505,-770.64,0.00015616,2]
[335491900,1724271064515,-1221.8,0.00015616,2]
[335491901,1724271064524,-592.34,0.00015616,2]
[335491902,1724271064534,-516.26,0.00015616,2]
[335491903,1724271064543,-500.0,0.00015616,2]
[335491904,1724271064553,-500.0,0.00015616,2]
[335491905,1724271064563,-1609.75,0.00015616,2]
[335491906,1724271064573,-1751.79,0.00015616,2]
[335491907,1724271064583,-500.0,0.00015616,2]
[335491908,1724271064598,-2912.27,0.00015616,2]
[335491909,1724271064608,-4271.33,0.00015616,2]
[335491910,1724271064619,-892.56,0.00015616,2]
[335491911,1724271064630,-500.0,0.00015616,2]
[335491912,1724271064640,-1349.34,0.00015616,2]
[335491913,1724271064651,-1872.48,0.00015616,2]
[335491914,1724271064662,-500.0,0.00015616,2]
[335491915,1724271064672,-1874.41,0.00015616,2]
[335491916,1724271064683,-843.59,0.00015616,2]
[335491917,1724271064693,-572.46,0.00015616,2]
[335491918,1724271064706,-500.0,0.00015616,2]
[335491919,1724271064717,-1812.21,0.00015616,2]
[335491920,1724271064727,-1297.86,0.00015616,2]
[335491921,1724271064737,-8174.27,0.00015616,2]
[335491922,1724271064748,-778.72,0.00015616,2]
[335491923,1724271064758,-574.93,0.00015616,2]
[335491924,1724271064768,-2107.46,0.00015616,2]
[335491925,1724271064779,-768.88,0.00015616,2]
[335491926,1724271064789,-2739.14,0.00015616,2]
[335491927,1724271064800,-23349.98,0.00015616,2]
[335491928,1724271064810,-1463.51,0.00015616,2]
[335491929,1724271064819,-500.0,0.00015616,2]
[335491930,1724271064829,-1339.48,0.00015616,2]
[335491931,1724271064842,-3622.41,0.00015616,2]
[335491932,1724271064851,-1649.78,0.00015616,2]
[335491933,1724271064861,-1449.44,0.00015616,2]
[335491934,1724271064871,-11751.7,0.00015616,2]
[335491935,1724271064881,-1388.58,0.00015616,2]
[335491936,1724271064891,-864.58,0.00015616,2]
[335491937,1724271064901,-905.44,0.00015616,2]
[335491938,1724271064911,-3327.77,0.00015616,2]
[335491939,1724271064921,-1453.56,0.00015616,2]
[335491940,1724271064931,-500.0,0.00015616,2]
[335491941,1724271064942,-2863.74,0.00015616,2]
[335491942,1724271064952,-501.06,0.00015616,2]
[335491943,1724271064962,-1806.38,0.00015616,2]
[335491944,1724271064972,-500.0,0.00015616,2]
[335491945,1724271064982,-4240.59,0.00015616,2]
[335491946,1724271064991,-888.38,0.00015616,2]
[335491947,1724271065001,-500.0,0.00015616,2]
[335491948,1724271065010,-1356.0,0.00015616,2]
[335491949,1724271065020,-956.25,0.00015616,2]
[335491950,1724271065030,-2136.97,0.00015616,2]
[335491951,1724271065039,-598.4,0.00015616,2]
[335491952,1724271065049,-16675.59,0.00015616,2]
[335491953,1724271065059,-2045.67,0.00015616,2]
[335491954,1724271065068,-1258.6,0.00015616,2]
[335491955,1724271065077,-201.0,0.0001566,2]
[335491956,1724271065087,-201.0,0.000158,2]
[335491957,1724271065100,-200.0,0.0001582,2]
[335491958,1724271065110,-200.0,0.0001582,2]
[335491959,1724271065120,-167.01,0.00015831,2]
[335491960,1724271065131,-265.0,0.0001584,2]
[335491961,1724271065141,-4396.83,0.00015889,2]
[335491962,1724271065152,-211.9298099,0.0001589,2]
[335491963,1724271065162,-496.17332544,0.0001589,2]
[335491964,1724271065171,-500.0,0.0001589,2]
[335491965,1724271065181,-500.0,0.0001589,2]
[335491966,1724271065191,-500.0,0.0001589,2]
[335491967,1724271065200,-237.26339065,0.0001589,2]
[335491968,1724271065210,-500.0,0.0001589,2]
[335491969,1724271065219,-393.42,0.0001589,2]
[335491970,1724271065228,-849.75,0.0001589,2]
[335491971,1724271065238,-500.0,0.0001589,2]
[335491972,1724271065247,-553.65,0.0001589,2]
[335491973,1724271065257,-500.0,0.0001589,2]
[335491974,1724271065267,-500.0,0.0001589,2]
[335491975,1724271065276,-500.0,0.0001589,2]
[335491976,1724271065289,-2476.81,0.0001589,2]
[335491977,1724271065298,-500.0,0.0001589,2]
[335491978,1724271065308,-500.0,0.0001589,2]
[335491979,1724271065318,-819.63,0.0001589,2]
[335491980,1724271065327,-500.0,0.0001589,2]
[335491981,1724271065341,-500.0,0.0001589,2]
[335491982,1724271065350,-953.0,0.0001589,2]
[335491983,1724271065360,-235.1625566,0.0001589,2]
[335491984,1724271065370,-553.4,0.0001589,2]
[335491985,1724271065379,-2372.5,0.0001589,2]
[335491986,1724271065388,-1887.65,0.0001589,2]
[335491987,1724271065398,-500.0,0.0001589,2]
[335491988,1724271065407,-500.0,0.0001589,2]
[335491989,1724271065416,-838.39,0.0001589,2]
[335491990,1724271065425,-500.0,0.0001589,2]
[335491991,1724271065434,-942.96,0.0001589,2]
[335491992,1724271065443,-500.0,0.0001589,2]
[335491993,1724271065452,-500.0,0.0001589,2]
[335491994,1724271065461,-2031.17,0.0001589,2]
[335491995,1724271065470,-1086.02,0.0001589,2]
[335491996,1724271065480,-500.0,0.0001589,2]
[335491997,1724271065490,-205.24779344,0.0001589,2]
[335491998,1724271065500,-500.0,0.0001589,2]
[335491999,1724271065510,-500.0,0.0001589,2]
[335492000,1724271065520,-500.0,0.0001589,2]
[335492001,1724271065530,-543.12562889,0.0001589,2]
[335492002,1724271065540,-1406.4,0.0001589,2]
[335492003,1724271065550,-2109.32,0.0001589,2]
[335492004,1724271065560,-506.39,0.0001589,2]
[335492005,1724271065569,-500.0,0.0001589,2]
[335492006,1724271065579,-500.0,0.0001589,2]
[335492007,1724271065593,-517.24559592,0.0001589,2]
[335492008,1724271065602,-500.0,0.0001589,2]
[335492009,1724271065612,-633.06,0.0001589,2]
[335492010,1724271065621,-2082.07,0.0001589,2]
[335492011,1724271065631,-500.0,0.0001589,2]
[335492012,1724271065640,-1272.91,0.0001589,2]
[335492013,1724271065649,-877.63,0.0001589,2]
[335492014,1724271065658,-432.40439033,0.0001589,2]
[335492015,1724271065668,-2827.83,0.0001589,2]
[335492016,1724271065677,-679.05,0.0001589,2]
[335492017,1724271065687,-2900.23,0.0001589,2]
[335492018,1724271065696,-3837.38,0.0001589,2]
[335492019,1724271065705,-1312.2,0.0001589,2]
[335492020,1724271065714,-5651.96,0.0001589,2]
[335492021,1724271065723,-2385.71,0.0001589,2]
[335492022,1724271065732,-2073.03,0.0001589,2]
[335492023,1724271065741,-727.0,0.0001589,2]
[335492024,1724271065750,-4428.25,0.0001589,2]
[335492025,1724271065759,-4040.23,0.0001589,2]
[335492026,1724271065769,-500.0,0.0001589,2]
[335492027,1724271065779,-500.0,0.0001589,2]
[335492028,1724271065788,-1758.36,0.0001589,2]
[335492029,1724271065797,-8908.85,0.0001589,2]
[335492030,1724271065806,-2776.63,0.0001589,2]
[335492031,1724271065816,-1849.24,0.0001589,2]
[335492032,1724271065825,-1976.14,0.0001589,2]
[335492033,1724271065834,-4975.15,0.0001589,2]
[335492034,1724271065845,-2893.92,0.0001589,2]
[335492035,1724271065854,-3907.53,0.0001589,2]
[335492036,1724271065864,-652.92,0.0001589,2]
[335492037,1724271065875,-8204.23,0.0001589,2]
[335492038,1724271065884,-715.41,0.0001589,2]
[335492039,1724271065893,-804.61,0.0001589,2]
[335492040,1724271065902,-3869.94,0.0001589,2]
[335492041,1724271065912,-500.0,0.0001589,2]
[335492042,1724271065921,-500.0,0.0001589,2]
[335492043,1724271065931,-560.54,0.0001589,2]
[335492044,1724271065940,-13097.07,0.0001589,2]
[335492045,1724271065949,-569.23,0.0001589,2]
[335492046,1724271065958,-500.0,0.0001589,2]
[335492047,1724271065967,-500.0,0.0001589,2]
[335492048,1724271065976,-5246.21,0.0001589,2]
[335492049,1724271065985,-508.22,0.0001589,2]
[335492050,1724271065994,-579.28,0.0001589,2]
[335492051,1724271066005,-770.64,0.0001589,2]
[335492052,1724271066014,-540.92,0.0001589,2]
[335492053,1724271066023,-1221.8,0.0001589,2]
[335492054,1724271066033,-592.34,0.0001589,2]
[335492055,1724271066042,-516.26,0.0001589,2]
[335492056,1724271066051,-500.0,0.0001589,2]
[335492057,1724271066060,-500.0,0.0001589,2]
[335492058,1724271066069,-1609.75,0.0001589,2]
[335492059,1724271066079,-1751.79,0.0001589,2]
[335492060,1724271066090,-500.0,0.0001589,2]
[335492061,1724271066099,-2912.27,0.0001589,2]
[335492062,1724271066108,-4271.33,0.0001589,2]
[335492063,1724271066118,-892.56,0.0001589,2]
[335492064,1724271066127,-500.0,0.0001589,2]
[335492065,1724271066136,-1349.34,0.0001589,2]
[335492066,1724271066245,-1872.48,0.0001589,2]